fUSD/lending_fUSD_20250506
["ID","MTS","AMOUNT","RATE_DAILY","PERIOD"]
[360037752,1746505841491,-450.0,0.00019999,2]
[360037753,1746505841501,-2281.19,0.00019999,2]
[360037754,1746505841512,-450.0,0.00019999,2]
[360037755,1746505841522,-2281.19,0.00019999,2]
[360037756,1746505841532,-351.6,0.00019999,2]
[360037757,1746505841541,-2281.19,0.00019999,2]
[360037758,1746505841551,-2281.19,0.00019999,2]
[360037759,1746505841560,-2281.19,0.00019999,2]
[360037760,1746505841569,-2281.19,0.00019999,2]
[360037761,1746505841579,-2281.19,0.00019999,2]
[360037762,1746505841588,-151.0,0.00019999,2]
[360037763,1746505841598,-2281.19,0.00019999,2]
[360037764,1746505841607,-151.0,0.00019999,2]
[360037765,1746505841617,-523.08382364,0.00019999,2]
[360037766,1746505841629,-1758.10617636,0.00019999,2]
[360037767,1746505841638,-523.76747299,0.00019999,2]
[360037768,1746505841654,-1456.2075135,0.00019999,2]
[360037773,1746505842676,-6851.76144495,0.000199,2]
[360037775,1746505842687,-1012.71330215,0.000199,2]
[360037777,1746505842697,-301.21501351,0.00019999,2]
[360037779,1746505842706,-811.12793397,0.00019999,2]
[360037782,1746505842717,-1470.06206603,0.00019999,2]
[360037784,1746505842726,-319.06619186,0.00019999,2]
[360037786,1746505842738,-1962.12380814,0.00019999,2]
[360037788,1746505842748,-2281.19,0.00019999,2]
[360037790,1746505842757,-2281.19,0.00019999,2]
[360037791,1746505842768,-2281.19,0.00019999,2]
[360037792,1746505842778,-2281.19,0.00019999,2]
[360037793,1746505842787,-2281.19,0.00019999,2]
[360037794,1746505842797,-2281.19,0.00019999,2]
[360037795,1746505842806,-450.0,0.00019999,2]
[360037796,1746505842815,-505.96659849,0.00019999,2]
[360037797,1746505842824,-450.0,0.00019999,2]
[360037798,1746505842833,-249.33641389,0.00019999,2]
[360037799,1746505842843,-155.964733,0.00019999,2]
[360037800,1746505842852,-1459.10867004,0.00019999,2]
[360037802,1746505846027,-389.07516007,0.00019999,2]
[360037803,1746505846037,-151.0,0.00019999,2]
[360037804,1746505846048,-170.488011,0.00019999,2]
[360037805,1746505846057,-250.91718658,0.0002,2]
[360037806,1746505846086,-646.08281342,0.0002,2]
[360037807,1746505846096,-353.91718658,0.0002,2]
[360037809,1746505868737,700.0,0.00030136,120]
[360037810,1746505868968,700.0,0.00030136,120]
[360037811,1746505869191,606.98340004,0.00030136,120]
[360037813,1746505885969,250.0,0.00019041,2]
[360037822,1746506051707,1054.0,0.00030137,120]
[360037827,1746506062298,528.23832142,0.00019999,7]
[360037840,1746506109523,354.22073458,0.0002,5]
[360037841,1746506120178,166.14,0.00019477,2]
[360037842,1746506134613,250.0,0.00017,2]
[360037843,1746506135736,300.0,0.00019,2]
[360037844,1746506179076,265.26,0.00018903,2]
[360037845,1746506246655,1832.82304901,0.0003,120]
[360037849,1746506427806,518.37,0.0001699,2]
[360037850,1746506428067,518.37,0.00019254,2]
[360037852,1746506555964,1000.0,0.00018901,2]
[360037853,1746506598852,152.0,0.0003,30]
[360037855,1746506751784,159.74,0.00019044,2]
[360037880,1746506988739,600.301936,0.0003,30]
[360037889,1746507031790,-153.18390627,0.0001973,2]
[360037890,1746507031800,-250.0,0.00019731,2]
[360037891,1746507031809,-200.0,0.00019732,2]
[360037892,1746507031819,-1034.29054192,0.00019744,2]
[360037893,1746507031829,-200.0,0.00019745,2]
[360037894,1746507031839,-150.0,0.00019746,2]
[360037895,1746507031848,-150.0,0.00019758,2]
[360037896,1746507031857,-1000.0,0.00019766,2]
[360037897,1746507031867,-150.0,0.00019769,2]
[360037898,1746507031876,-207.4,0.00019774,2]
[360037899,1746507031885,-150.0,0.00019786,2]
[360037900,1746507031895,-1000.0,0.00019786,2]
[360037901,1746507031904,-416.28616999,0.00019794,2]
[360037902,1746507031920,-583.71383001,0.00019794,2]
[360037903,1746507031930,-200.0,0.000198,2]
[360037904,1746507031940,-616.21807356,0.00019801,2]
[360037905,1746507031952,-583.78192644,0.00019801,2]
[360037906,1746507031961,-1042.60322033,0.00019802,2]
[360037907,1746507031970,-150.0,0.00019807,2]
[360037908,1746507031980,-150.0,0.00019821,2]
[360037909,1746507031990,-151.0,0.00019826,2]
[360037910,1746507031999,-153.06824472,0.0001983,2]
[360037911,1746507032008,-150.0,0.00019832,2]
[360037912,1746507032018,-300.0,0.00019838,2]
[360037913,1746507032028,-200.0,0.0001984,2]
[360037914,1746507032038,-155.40875089,0.00019867,2]
[360037915,1746507032047,-317.1902,0.00019873,2]
[360037916,1746507032057,-300.0,0.00019884,2]
[360037917,1746507032067,-500.0,0.00019885,2]
[360037918,1746507032076,-3385.35777355,0.00019885,2]
[360037919,1746507032088,-372.51000098,0.00019885,2]
[360037920,1746507032100,-595.39054192,0.00019885,2]
[360037921,1746507032111,-4873.03523845,0.00019885,2]
[360037922,1746507032123,-912.22240164,0.00019885,2]
[360037924,1746507032156,-2242.63934346,0.00019885,2]
[360037925,1746507032166,-597.83384956,0.00019885,2]
[360037926,1746507032200,-252.16615044,0.00019885,2]
[360037927,1746507032209,-149.49167654,0.00019886,2]
[360037928,1746507032221,-330.23163071,0.00019886,2]
[360037929,1746507032232,-192.93089275,0.00019886,2]
[360037930,1746507032241,-350.0885,0.00019886,2]
[360037931,1746507032250,-79.47302393,0.00019893,2]
[360037932,1746507032262,-70.52697607,0.00019893,2]
[360037933,1746507032272,-152.98210791,0.00019895,2]
[360037934,1746507032282,-152.98210787,0.00019896,2]
[360037935,1746507032291,-69.00070028,0.00019897,2]
[360037936,1746507032308,-10936.12381563,0.00019897,2]
[360037937,1746507032319,-1339.95998566,0.00019897,2]
[360037938,1746507032330,-257.93579552,0.00019897,2]
[360037939,1746507032343,-4450.00000001,0.00019897,2]
[360037940,1746507032354,-3985.40504496,0.00019897,2]
[360037941,1746507032366,-504.42,0.00019897,2]
[360037942,1746507032403,-4135.58284015,0.00019897,2]
[360037943,1746507032414,-6390.92909057,0.00019897,2]
[360037944,1746507032426,-298.695,0.00019897,2]
[360037945,1746507032437,-588.1693003,0.00019897,2]
[360037946,1746507032448,-3974.38788704,0.00019897,2]
[360037954,1746507037924,-500.0,0.00019896,2]
[360037955,1746507037934,-500.0,0.00019896,2]
[360037956,1746507037944,-500.0,0.00019896,2]
[360037957,1746507037954,-500.0,0.00019896,2]
[360037958,1746507037965,-500.0,0.00019896,2]
[360037959,1746507037975,-500.0,0.00019896,2]
[360037960,1746507037985,-645.658817,0.00019896,2]
[360037961,1746507037995,-500.0,0.00019896,2]
[360037962,1746507038005,-500.0,0.00019896,2]
[360037963,1746507038015,-268.1380314,0.00019896,2]
[360037964,1746507038023,-500.0,0.00019896,2]
[360037965,1746507038032,-500.0,0.00019896,2]
[360037966,1746507038041,-30750.00056264,0.00019897,2]
[360037967,1746507038084,-54772.50357724,0.00019897,2]
[360037968,1746507038093,-152.98210787,0.00019897,2]
[360037969,1746507038102,-152.98210787,0.00019898,2]
[360037970,1746507038111,-163.81347882,0.00019898,2]
[360037971,1746507038121,-1679.8117,0.00019899,2]
[360037972,1746507038131,-162.89352151,0.00019899,2]
[360037973,1746507038140,-152.98210787,0.00019899,2]
[360037974,1746507038149,-162.23466151,0.00019899,2]
[360037975,1746507038159,-162.23466149,0.00019899,2]
[360037976,1746507038168,-162.23466149,0.000199,2]
[360037977,1746507038178,-250.1405094,0.000199,2]
[360037978,1746507038187,-1000.0,0.000199,2]
[360037979,1746507038197,-2469.3964,0.000199,2]
[360037980,1746507038207,-485.1562,0.000199,2]
[360037981,1746507038216,-152.98210787,0.000199,2]
[360037982,1746507038225,-163.81347882,0.000199,2]
[360037983,1746507038235,-30000.0,0.000199,2]
[360037984,1746507038244,-162.23466149,0.000199,2]
[360037985,1746507038254,-181.54888182,0.000199,2]
[360037986,1746507038263,-1021.0,0.000199,2]
[360037987,1746507038272,-880.50764913,0.000199,2]
[360037988,1746507038281,-17638.46580054,0.000199,2]
[360037989,1746507038291,-2537.9605082,0.000199,2]
[360037990,1746507038300,-1000.0,0.00019914,2]
[360037991,1746507038310,-500.0,0.00019918,2]
[360037992,1746507038319,-150.0,0.00019926,2]
[360037993,1746507038328,-150.0,0.00019935,2]
[360037994,1746507038337,-150.0,0.00019939,2]
[360037995,1746507038347,-791.22891477,0.0001994,2]
[360037996,1746507038357,-525.31982311,0.00019973,2]
[360037997,1746507038367,-500.0,0.00019973,2]
[360037998,1746507038376,-500.0,0.00019973,2]
[360037999,1746507038385,-1000.0,0.00019974,2]
[360038000,1746507038394,-1000.0,0.00019977,2]
[360038001,1746507038403,-450.0,0.00019985,2]
[360038002,1746507038413,-572.89,0.00019985,2]
[360038003,1746507038422,-450.0,0.00019985,2]
[360038004,1746507038432,-232.13121858,0.00019985,2]
[360038005,1746507038441,-450.0,0.00019985,2]
[360038006,1746507038450,-504.29484189,0.00019985,2]
[360038007,1746507038459,-450.0,0.00019985,2]
[360038008,1746507038469,-469.88421983,0.00019985,2]
[360038009,1746507038478,-488.90305636,0.00019985,2]
[360038010,1746507038487,-450.0,0.00019985,2]
[360038011,1746507038497,-470.80762615,0.00019985,2]
[360038012,1746507038506,-468.32857855,0.00019985,2]
[360038013,1746507038516,-450.0,0.00019985,2]
[360038014,1746507038525,-476.75660272,0.00019985,2]
[360038015,1746507038534,-150.0,0.00019985,2]
[360038016,1746507038544,-450.0,0.00019985,2]
[360038017,1746507038553,-481.56400732,0.00019985,2]
[360038018,1746507038562,-454.0,0.00019985,2]
[360038019,1746507038571,-373.12414074,0.00019985,2]
[360038020,1746507038581,-450.0,0.00019985,2]
[360038021,1746507038590,-450.0,0.00019985,2]
[360038022,1746507038599,-450.0,0.00019985,2]
[360038023,1746507038608,-450.0,0.00019985,2]
[360038024,1746507038618,-450.0,0.00019985,2]
[360038025,1746507038629,-450.0,0.00019985,2]
[360038026,1746507038638,-450.0,0.00019985,2]
[360038027,1746507038650,-450.0,0.00019985,2]
[360038028,1746507038660,-450.0,0.00019985,2]
[360038029,1746507038669,-450.0,0.00019985,2]
[360038030,1746507038680,-444.7323194,0.00019985,2]
[360038031,1746507038690,-516.24329917,0.00019985,2]
[360038032,1746507038699,-450.0,0.00019985,2]
[360038033,1746507038709,-450.0,0.00019985,2]
[360038034,1746507038719,-450.0,0.00019985,2]
[360038035,1746507038728,-217.36384223,0.00019985,2]
[360038036,1746507038738,-430.27775217,0.00019985,2]
[360038037,1746507038747,-450.0,0.00019985,2]
[360038038,1746507038757,-450.0,0.00019985,2]
[360038039,1746507038766,-450.0,0.00019985,2]
[360038040,1746507038776,-450.0,0.00019985,2]
[360038041,1746507038785,-450.0,0.00019985,2]
[360038042,1746507038794,-450.0,0.00019985,2]
[360038043,1746507038803,-450.0,0.00019985,2]
[360038044,1746507038812,-450.0,0.00019985,2]
[360038045,1746507038822,-450.0,0.00019985,2]
[360038046,1746507038831,-450.0,0.00019985,2]
[360038047,1746507038841,-318.71792596,0.00019985,2]
[360038048,1746507038854,-131.28207404,0.00019985,2]
[360038049,1746507038863,-1496.36,0.00019986,2]
[360038050,1746507038872,-5.3455806,0.00019986,2]
[360038051,1746507038885,-777.9180853,0.00019986,2]
[360038052,1746507038894,-5444.8752823,0.00019986,2]
[360038053,1746507038903,-3722.14090815,0.00019986,2]
[360038054,1746507038918,-958.43608478,0.00019986,2]
[360038055,1746507039886,-7523.48386137,0.00019986,2]
[360038056,1746507039896,-4976.51613863,0.00019986,2]
[360038057,1746507039941,-22663.32982127,0.00019986,2]
[360038058,1746507039950,-443.75715937,0.00019995,2]
[360038059,1746507039960,-553.86922142,0.00019995,2]
[360038060,1746507039970,-502.08471782,0.00019995,2]
[360038061,1746507039979,-497.20398235,0.00019995,2]
[360038062,1746507039989,-519.31917299,0.00019995,2]
[360038063,1746507039999,-567.41607355,0.00019995,2]
[360038064,1746507040008,-450.0,0.00019995,2]
[360038065,1746507040018,-588.57344178,0.00019995,2]
[360038066,1746507040027,-450.0,0.00019995,2]
[360038067,1746507040037,-520.67108747,0.00019995,2]
[360038068,1746507040046,-450.0,0.00019995,2]
[360038069,1746507040056,-527.59337858,0.00019995,2]
[360038070,1746507040066,-518.85555992,0.00019995,2]
[360038071,1746507040075,-490.20422057,0.00019995,2]
[360038072,1746507040084,-463.52783394,0.00019995,2]
[360038073,1746507040094,-562.84266766,0.00019995,2]
[360038074,1746507040103,-517.41667921,0.00019995,2]
[360038075,1746507040113,-504.35589026,0.00019995,2]
[360038076,1746507040122,-483.08316052,0.00019995,2]
[360038077,1746507040132,-493.75672827,0.00019995,2]
[360038078,1746507040141,-491.66404043,0.00019995,2]
[360038079,1746507040151,-569.12959001,0.00019995,2]
[360038080,1746507040161,-482.25576652,0.00019995,2]
[360038081,1746507040170,-535.35702097,0.00019995,2]
[360038082,1746507040180,-496.75958284,0.00019995,2]
[360038083,1746507040190,-481.97935146,0.00019995,2]
[360038084,1746507040199,-509.30939956,0.00019995,2]
[360038085,1746507040209,-450.0,0.00019995,2]
[360038086,1746507040220,-491.30414652,0.00019995,2]
[360038087,1746507040229,-501.73368094,0.00019995,2]
[360038088,1746507040239,-554.11084385,0.00019995,2]
[360038089,1746507040249,-498.42105824,0.00019995,2]
[360038090,1746507040258,-514.65599308,0.00019995,2]
[360038091,1746507040267,-450.0,0.00019995,2]
[360038092,1746507040277,-513.01785541,0.00019995,2]
[360038093,1746507040286,-450.0,0.00019995,2]
[360038094,1746507040296,-510.12060902,0.00019995,2]
[360038095,1746507040305,-510.23350673,0.00019995,2]
[360038096,1746507040315,-477.43369054,0.00019995,2]
[360038097,1746507040324,-488.89732393,0.00019995,2]
[360038098,1746507040333,-450.0,0.00019995,2]
[360038099,1746507040342,-450.0,0.00019995,2]
[360038100,1746507040352,-450.0,0.00019995,2]
[360038101,1746507040362,-491.71225383,0.00019995,2]
[360038102,1746507040371,-450.0,0.00019995,2]
[360038103,1746507040381,-450.0,0.00019995,2]
[360038104,1746507040391,-440.0,0.00019995,2]
[360038105,1746507040401,-329.84,0.00019995,2]
[360038106,1746507040410,-450.0,0.00019995,2]
[360038107,1746507040420,-577.46,0.00019995,2]
[360038108,1746507040430,-529.04657049,0.00019995,2]
[360038109,1746507040439,-551.72601071,0.00019995,2]
[360038110,1746507040449,-512.90204399,0.00019995,2]
[360038111,1746507040459,-450.0,0.00019995,2]
[360038112,1746507040468,-532.02020237,0.00019995,2]
[360038113,1746507040477,-450.0,0.00019995,2]
[360038114,1746507040487,-450.0,0.00019995,2]
[360038115,1746507040496,-450.0,0.00019995,2]
[360038116,1746507040506,-450.0,0.00019995,2]
[360038117,1746507040515,-519.53719311,0.00019995,2]
[360038118,1746507040525,-566.9039577,0.00019995,2]
[360038119,1746507040534,-488.15712957,0.00019995,2]
[360038120,1746507040543,-450.0,0.00019995,2]
[360038121,1746507040552,-521.76753352,0.00019995,2]
[360038122,1746507040561,-450.0,0.00019995,2]
[360038123,1746507040571,-450.0,0.00019995,2]
[360038124,1746507040581,-450.0,0.00019995,2]
[360038125,1746507040590,-495.40668662,0.00019995,2]
[360038126,1746507040600,-504.4441869,0.00019995,2]
[360038127,1746507040610,-288.1551423,0.00019995,2]
[360038128,1746507040619,-413.61756275,0.00019995,2]
[360038129,1746507040629,-588.93865427,0.00019995,2]
[360038130,1746507040639,-450.0,0.00019995,2]
[360038131,1746507040648,-450.0,0.00019995,2]
[360038132,1746507040658,-450.0,0.00019995,2]
[360038133,1746507040668,-450.0,0.00019995,2]
[360038134,1746507040677,-450.0,0.00019995,2]
[360038135,1746507040686,-450.0,0.00019995,2]
[360038136,1746507040696,-450.0,0.00019995,2]
[360038137,1746507040706,-450.0,0.00019995,2]
[360038138,1746507040716,-450.0,0.00019995,2]
[360038139,1746507040725,-450.0,0.00019995,2]
[360038140,1746507040734,-450.0,0.00019995,2]
[360038141,1746507040743,-450.0,0.00019995,2]
[360038142,1746507040753,-475.11,0.00019995,2]
[360038143,1746507040763,-450.0,0.00019995,2]
[360038144,1746507040772,-450.0,0.00019995,2]
[360038145,1746507040782,-450.0,0.00019995,2]
[360038146,1746507040791,-450.0,0.00019995,2]
[360038147,1746507040801,-450.0,0.00019995,2]
[360038148,1746507040811,-450.0,0.00019995,2]
[360038149,1746507040820,-450.0,0.00019995,2]
[360038150,1746507040830,-450.0,0.00019995,2]
[360038151,1746507040839,-450.0,0.00019995,2]
[360038152,1746507040849,-450.0,0.00019995,2]
[360038153,1746507040858,-527.82644784,0.00019995,2]
[360038154,1746507040867,-450.0,0.00019995,2]
[360038155,1746507040876,-565.41,0.00019995,2]
[360038156,1746507040886,-450.0,0.00019995,2]
[360038157,1746507040895,-450.0,0.00019995,2]
[360038158,1746507040904,-450.0,0.00019995,2]
[360038159,1746507040913,-450.0,0.00019995,2]
[360038160,1746507040923,-450.0,0.00019995,2]
[360038161,1746507040932,-450.0,0.00019995,2]
[360038162,1746507040941,-450.0,0.00019995,2]
[360038163,1746507040950,-450.0,0.00019995,2]
[360038164,1746507040959,-450.0,0.00019995,2]
[360038165,1746507040968,-450.0,0.00019995,2]
[360038166,1746507040978,-450.0,0.00019995,2]
[360038167,1746507040987,-450.0,0.00019995,2]
[360038168,1746507040996,-450.0,0.00019995,2]
[360038169,1746507041006,-450.0,0.00019995,2]
[360038170,1746507041015,-450.0,0.00019995,2]
[360038171,1746507041024,-450.0,0.00019995,2]
[360038172,1746507041034,-450.0,0.00019995,2]
[360038173,1746507041043,-450.0,0.00019995,2]
[360038174,1746507041052,-577.1,0.00019995,2]
[360038175,1746507041062,-253.99153518,0.00019995,2]
[360038176,1746507041072,-450.0,0.00019995,2]
[360038177,1746507041081,-450.0,0.00019995,2]
[360038178,1746507041090,-450.0,0.00019995,2]
[360038179,1746507041099,-450.0,0.00019995,2]
[360038180,1746507041109,-450.0,0.00019995,2]
[360038181,1746507041118,-450.0,0.00019995,2]
[360038182,1746507041130,-450.0,0.00019995,2]
[360038183,1746507041139,-450.0,0.00019995,2]
[360038184,1746507041149,-2704.87,0.00019995,2]
[360038185,1746507041159,-450.0,0.00019995,2]
[360038186,1746507041168,-450.46779436,0.00019995,2]
[360038187,1746507041178,-450.0,0.00019995,2]
[360038188,1746507041187,-450.0,0.00019995,2]
[360038189,1746507041196,-450.0,0.00019995,2]
[360038190,1746507041205,-450.0,0.00019995,2]
[360038191,1746507041215,-450.0,0.00019995,2]
[360038192,1746507041224,-450.0,0.00019995,2]
[360038193,1746507041235,-627.25,0.00019995,2]
[360038194,1746507041244,-450.0,0.00019995,2]
[360038195,1746507041254,-363.53218527,0.00019995,2]
[360038196,1746507041263,-450.0,0.00019995,2]
[360038197,1746507041272,-450.0,0.00019995,2]
[360038198,1746507041282,-450.0,0.00019995,2]
[360038199,1746507041292,-450.0,0.00019995,2]
[360038200,1746507041301,-450.80032787,0.00019995,2]
[360038201,1746507041311,-450.0,0.00019995,2]
[360038202,1746507041320,-177.19546774,0.00019996,2]
[360038203,1746507041329,-212.32166938,0.00019996,2]
[360038204,1746507041339,-450.0,0.00019996,2]
[360038205,1746507041348,-450.0,0.00019996,2]
[360038206,1746507041358,-308.15918124,0.00019996,2]
[360038207,1746507041367,-199.39905228,0.00019996,2]
[360038208,1746507041376,-366.31219986,0.00019996,2]
[360038209,1746507041386,-288.85968053,0.00019996,2]
[360038210,1746507041395,-450.0,0.00019996,2]
[360038211,1746507041404,-450.0,0.00019996,2]
[360038212,1746507041414,-450.0,0.00019996,2]
[360038213,1746507041423,-450.0,0.00019996,2]
[360038214,1746507041433,-539.82013308,0.00019996,2]
[360038215,1746507041443,-424.86931227,0.00019996,2]
[360038216,1746507041452,-368.96836652,0.00019996,2]
[360038217,1746507041461,-450.0,0.00019996,2]
[360038218,1746507041470,-450.0,0.00019996,2]
[360038219,1746507041479,-214.09884759,0.00019996,2]
[360038220,1746507041488,-450.0,0.00019996,2]
[360038221,1746507041497,-450.0,0.00019996,2]
[360038222,1746507041507,-350.22197473,0.00019996,2]
[360038223,1746507041516,-446.11298159,0.00019996,2]
[360038224,1746507041525,-450.0,0.00019996,2]
[360038225,1746507041534,-512.72,0.00019996,2]
[360038226,1746507041543,-532.28,0.00019996,2]
[360038227,1746507041553,-450.0,0.00019996,2]
[360038228,1746507041562,-450.0,0.00019996,2]
[360038229,1746507041572,-450.0,0.00019996,2]
[360038230,1746507041581,-450.0,0.00019996,2]
[360038231,1746507041590,-450.0,0.00019996,2]
[360038232,1746507041600,-250.0,0.00019996,2]
[360038233,1746507041610,-450.0,0.00019996,2]
[360038234,1746507041619,-450.0,0.00019996,2]
[360038235,1746507041628,-450.0,0.00019996,2]
[360038236,1746507041636,-264.55646485,0.00019996,2]
[360038237,1746507041645,-450.0,0.00019996,2]
[360038238,1746507041655,-325.44505064,0.00019996,2]
[360038239,1746507041664,-450.0,0.00019996,2]
[360038240,1746507041675,-450.0,0.00019996,2]
[360038241,1746507041685,-450.0,0.00019996,2]
[360038242,1746507041694,-550.87,0.00019996,2]
[360038243,1746507041705,-450.0,0.00019996,2]
[360038244,1746507041714,-450.0,0.00019996,2]
[360038245,1746507041724,-361.30391467,0.00019996,2]
[360038246,1746507041734,-1004.72039447,0.00019996,2]
[360038247,1746507041745,-450.0,0.00019996,2]
[360038248,1746507041755,-450.0,0.00019996,2]
[360038249,1746507041764,-580.76,0.00019996,2]
[360038250,1746507041775,-450.0,0.00019996,2]
[360038251,1746507041784,-450.0,0.00019996,2]
[360038252,1746507041793,-465.914,0.00019996,2]
[360038253,1746507041803,-450.0,0.00019996,2]
[360038254,1746507041812,-450.0,0.00019996,2]
[360038255,1746507041821,-450.0,0.00019996,2]
[360038256,1746507041831,-450.0,0.00019996,2]
[360038257,1746507041840,-390.22200105,0.00019996,2]
[360038258,1746507041849,-450.0,0.00019996,2]
[360038259,1746507041859,-450.0,0.00019996,2]
[360038260,1746507041869,-450.0,0.00019996,2]
[360038261,1746507041879,-318.97367761,0.00019996,2]
[360038262,1746507041888,-450.0,0.00019996,2]
[360038263,1746507041897,-450.0,0.00019996,2]
[360038264,1746507041907,-450.0,0.00019996,2]
[360038265,1746507041916,-450.0,0.00019996,2]
[360038266,1746507041926,-450.0,0.00019996,2]
[360038267,1746507041937,-450.0,0.00019996,2]
[360038268,1746507041948,-450.0,0.00019996,2]
[360038269,1746507041959,-450.0,0.00019996,2]
[360038270,1746507041969,-538.42799459,0.00019996,2]
[360038271,1746507041978,-579.33838416,0.00019996,2]
[360038272,1746507041988,-450.0,0.00019996,2]
[360038273,1746507042114,-450.0,0.00019996,2]
[360038274,1746507042144,-450.0,0.00019996,2]
[360038275,1746507042154,-450.0,0.00019996,2]
[360038276,1746507042163,-502.28711164,0.00019996,2]
[360038277,1746507042173,-567.20302934,0.00019996,2]
[360038278,1746507042182,-450.0,0.00019996,2]
[360038279,1746507042192,-450.0,0.00019996,2]
[360038280,1746507042202,-450.0,0.00019996,2]
[360038281,1746507042212,-450.0,0.00019996,2]
[360038282,1746507042222,-505.15579799,0.00019996,2]
[360038283,1746507042233,-450.0,0.00019996,2]
[360038284,1746507042242,-450.0,0.00019996,2]
[360038285,1746507042251,-450.0,0.00019996,2]
[360038286,1746507042261,-450.0,0.00019996,2]
[360038287,1746507042271,-569.20046436,0.00019996,2]
[360038288,1746507042280,-580.13669269,0.00019996,2]
[360038289,1746507042290,-556.88457241,0.00019996,2]
[360038290,1746507042300,-547.43514998,0.00019996,2]
[360038291,1746507042310,-450.0,0.00019996,2]
[360038292,1746507042319,-450.0,0.00019996,2]
[360038293,1746507042329,-450.0,0.00019996,2]
[360038294,1746507042339,-450.0,0.00019996,2]
[360038295,1746507042349,-450.0,0.00019996,2]
[360038296,1746507042358,-450.0,0.00019996,2]
[360038297,1746507042368,-450.0,0.00019996,2]
[360038298,1746507042377,-176.52000285,0.00019996,2]
[360038299,1746507042387,-450.0,0.00019996,2]
[360038300,1746507042396,-450.0,0.00019996,2]
[360038301,1746507042406,-450.0,0.00019996,2]
[360038302,1746507042415,-450.0,0.00019996,2]
[360038303,1746507042425,-491.2152973,0.00019997,2]
[360038304,1746507042434,-455.20013552,0.00019997,2]
[360038305,1746507042443,-400.0,0.00019997,2]
[360038306,1746507042453,-492.67068164,0.00019997,2]
[360038307,1746507042462,-181.26618818,0.00019997,2]
[360038308,1746507042472,-332.39273584,0.00019997,2]
[360038309,1746507042481,-170.04288718,0.00019997,2]
[360038310,1746507042491,-280.80720093,0.00019997,2]
[360038311,1746507042500,-515.46919084,0.00019997,2]
[360038312,1746507042509,-525.34,0.00019997,2]
[360038313,1746507042518,-539.32936386,0.00019997,2]
[360038314,1746507042528,-450.0,0.00019997,2]
[360038315,1746507042537,-450.0,0.00019997,2]
[360038316,1746507042547,-450.0,0.00019997,2]
[360038317,1746507042557,-450.0,0.00019997,2]
[360038318,1746507042567,-571.78132308,0.00019997,2]
[360038319,1746507042576,-518.24126788,0.00019997,2]
[360038320,1746507042586,-450.0,0.00019997,2]
[360038321,1746507042595,-467.71550843,0.00019997,2]
[360038322,1746507042605,-430.29395076,0.00019997,2]
[360038323,1746507042614,-429.87056663,0.00019997,2]
[360038324,1746507042623,-450.0,0.00019997,2]
[360038325,1746507042632,-447.19073397,0.00019997,2]
[360038326,1746507042642,-450.0,0.00019997,2]
[360038327,1746507042651,-317.74525821,0.00019997,2]
[360038328,1746507042661,-469.30020942,0.00019997,2]
[360038329,1746507042671,-450.0,0.00019997,2]
[360038330,1746507042681,-492.09446118,0.00019997,2]
[360038331,1746507042691,-450.0,0.00019997,2]
[360038332,1746507042700,-450.0,0.00019997,2]
[360038334,1746507042710,-450.0,0.00019997,2]
[360038336,1746507042720,-450.0,0.00019997,2]
[360038338,1746507042729,-450.0,0.00019997,2]
[360038340,1746507042743,-450.0,0.00019997,2]